{"text_format":"1","workbook":"xlsx","n_sheets":15,"sheets":["様式第21号","別紙様式第1号","様式第13号","様式第16号","様式第18号","様式第18号別添1_（場所毎）","様式第19号-1","様式第19号 -2","様式第19号 -3","様式第20号","様式21　別紙１","様式21号　別紙２","安全講習会","関係人口名簿","傷害保険"],"not_rendered":{"charts":0,"images":0,"macros":1,"external_links":0,"defined_names":18,"comments":0,"pivot_tables":0},"unopened":[],"bounds":{"document_bytes":16777216,"sheet_cells":100000,"rows_first":2000,"rows_last":500,"rows_between":2000,"halvings":0,"cell_chars":16384,"cell_head_chars":4096},"cells_cut":0,"cells_raw":0,"read":"whole","date_system":"1900"}

{"sheet":"様式第21号","index":0,"n_rows":40,"n_cols":1,"rows_kept":40,"cut":false,"hidden":false,"merged":[[31,0,31,7],[29,0,29,3],[17,0,17,2],[8,0,8,7],[35,0,35,7],[1,0,1,7],[2,0,2,7],[4,0,4,1],[5,0,5,1],[7,0,7,7],[28,0,28,7],[37,0,37,7],[10,0,10,7],[12,0,12,7],[14,0,14,7],[16,0,16,7],[24,0,24,7],[26,0,26,7]]}
["（別紙３　様式第21号）"]
["番　　　号　"]
["年　月　日　"]
[]
["木の国協議会会長"]
["岡田和久　殿"]
[]
["　　○○活動組織代表　　"]
["　氏　　名　　　　　　"]
[]
["令和6年度　森林・山村多面的機能発揮対策交付金に係る実施状況報告書"]
[]
["　令和6年度の実施状況について、森林・山村多面的機能発揮対策実施要領（平成25年５月16日付け25林整森第74号林野庁長官通知）別紙３の第５の８に基づき、下記の関係書類を添えて報告する。"]
[]
["記"]
[]
["１　令和6年度　森林・山村多面的機能発揮対策交付金（活動記録兼作業写真整理帳）　"]
["（別紙３　様式第18号）"]
[]
["２　作業写真整理帳（別紙３　様式第18号別添）"]
[]
["３　令和6年度　森林・山村多面的機能発揮対策交付金（金銭出納簿）"]
["（別紙３　様式第19号）"]
[]
["４　令和6年度　モニタリング結果報告書（別紙３　様式第20号）"]
[]
["５　令和6年度　実施状況整理票（別紙3　様式第21号別紙１）"]
[]
["６　令和6年度　森林・山村多面的機能発揮に対する効果チェックシート"]
["（別紙3　様式第21号別紙2）"]
[]
["７　環境負荷低減のクロスコンプライアンスチェックシート（別紙３　様式第13号）"]
[]
["８　交付金交付申請書（別記様式第1号）"]
[]
["９　安全講習会の講習報告書（様式あり）"]
[]
["10　令和6年度　関係人口創出・維持タイプの参加者名簿（該当団体のみ）"]
[]
["（※傷害保険料を交付金で精算しない場合は、保険加入証明書を添付すること。)"]

{"sheet":"別紙様式第1号","index":1,"n_rows":38,"n_cols":31,"rows_kept":38,"cut":false,"hidden":false,"merged":[[31,0,35,0],[31,1,31,4],[32,1,32,4],[33,1,35,4],[26,25,26,26],[27,1,27,14],[27,15,27,30],[28,13,28,18],[26,15,26,16],[26,17,26,18],[26,19,26,20],[26,21,26,22],[29,1,29,9],[29,10,29,30],[26,3,26,4],[26,5,26,6],[26,7,26,8],[26,9,26,10],[26,11,26,14],[28,1,28,4],[28,5,28,8],[28,9,28,12],[28,19,28,22],[28,23,28,26],[28,27,28,30],[26,23,26,24],[17,0,30,0],[17,1,17,30],[18,1,18,19],[18,22,18,30],[19,1,20,9],[24,1,24,30],[19,10,19,21],[20,10,20,21],[21,1,21,9],[22,1,22,9],[23,1,23,30],[26,27,26,28],[26,29,26,30],[25,1,25,14],[25,15,25,30],[26,1,26,2],[4,0,4,30],[5,0,5,30],[6,0,6,30],[8,0,9,30],[11,0,15,0],[11,1,11,20],[11,21,11,30],[12,1,12,20],[12,21,12,29],[13,1,13,20],[13,21,13,29],[14,1,14,20],[14,21,14,29],[15,1,15,20],[15,21,15,29],[3,0,3,30],[0,0,0,30],[1,16,1,21],[1,22,1,30],[2,0,2,1],[2,16,2,30],[19,22,20,30],[22,10,22,12],[22,13,22,15],[22,16,22,18],[22,19,22,21],[22,22,22,24],[22,25,22,27],[22,28,22,30],[30,25,30,27],[30,28,30,30],[32,5,32,30],[31,5,31,30],[35,5,35,30],[33,22,34,26],[33,27,34,29],[33,19,34,21],[33,14,34,18],[30,10,30,12],[30,13,30,15],[30,16,30,18],[30,19,30,21],[30,22,30,24],[30,1,30,9]]}
["（別紙１　様式第６号　別添２　別記様式第１号）"]
[null,null,null,null,null,null,null,null,null,null,null,null,null,null,null,null,"申請年月日",null,null,null,null,null,"年　　月　　日"]
[null,null,null,null,null,null,null,null,null,null,null,null,null,null,null,null,"　　　年度　　　第　　　号"]
["木の国協議会"]
["会長　岡田　和久　殿"]
["○○活動組織　　　　　"]
["代表　○○　○○　　"]
[]
["○○年○月○日付け○号にて採択通知のあった森林・山村多面的機能発揮対策交付金の交付を受けたいので、下記のとおり申請します。"]
[]
[]
["交  付  申  請 額","項目",null,null,null,null,null,null,null,null,null,null,null,null,null,null,null,null,null,null,null,"金額"]
[null," 採択決定額　　　　　　　　　　　　①",null,null,null,null,null,null,null,null,null,null,null,null,null,null,null,null,null,null,null,null,null,null,null,null,null,null,null,null,"円"]
[null," 既交付額　　　　　　　　　　　　　②",null,null,null,null,null,null,null,null,null,null,null,null,null,null,null,null,null,null,null,null,null,null,null,null,null,null,null,null,"円"]
[null," 今回申請額　　　　　　　　　　　　③",null,null,null,null,null,null,null,null,null,null,null,null,null,null,null,null,null,null,null,null,null,null,null,null,null,null,null,null,"円"]
[null," 採択決定額（年間交付額）との差額  ④＝①－②－③",null,null,null,null,null,null,null,null,null,null,null,null,null,null,null,null,null,null,null,{"$f":"V13-V14-V15","v":0},null,null,null,null,null,null,null,null,"円"]
[]
["交  付  金  振  込  口  座"," 金融機関（ゆうちょ銀行以外）"]
[null," 金融機関名",null,null,null,null,null,null,null,null,null,null,null,null,null,null,null,null,null,null,null,null," 支店名"]
[null,null,null,null,null,null,null,null,null,null," 農業協同組合　銀行　信用金庫"]
[null,null,null,null,null,null,null,null,null,null," 信用組合　労働金庫　信連　農林中金"]
[null,"預金種別（該当のものにレ印を記入）"]
[null,"□普通　□当座　　　　　　□別段　□通知",null,null,null,null,null,null,null,null,1,null,null,2,null,null,3,null,null,4,null,null,5,null,null,6,null,null,7]
[null," ≪ゆうちょ銀行の方はこちらに記入してください。≫"]
[null," ゆうちょ銀行"]
[null," 記号（６ケタ目がある場合は※部分に記入）",null,null,null,null,null,null,null,null,null,null,null,null,null," 番号（右づめで記入）"]
[null,1,null,2,null,3,null,4,null,5,null,"※",null,null,null,1,null,2,null,3,null,4,null,5,null,6,null,7,null,8]
[null," 店名",null,null,null,null,null,null,null,null,null,null,null,null,null," 店番"]
[null,null,null,null,null,null,null,null,null,null,null,null,null,"店"]
[null,"預金種目（該当のものにレ印を記入）",null,null,null,null,null,null,null,null," 口座番号（右づめで記入）"]
[null,"□普通　□貯蓄　□当座"]
["口  座  名  義","フリガナ"]
[null,"口座名義"]
[null,"住所",null,null,null,"(〒      -          )           ",null,null,null,null,null,null,null,null,null,null,null,null,null,"都 道  府 県",null,null,null,null,null,null,null,"市 区  町 村"]
[null,null,null,null,null,"　　　　　　　　　　　　 　　            "]
[]
[]
["(注)交付金の振込口座の通帳の写し（口座番号、口座名義が分かる箇所）を添付してください。"]

{"sheet":"様式第13号","index":2,"n_rows":20,"n_cols":9,"rows_kept":20,"cut":false,"hidden":false,"merged":[[1,0,1,8],[0,5,0,6]]}
["（別紙３　様式第13号）",null,null,null,null,"組織名"]
["環境負荷低減のクロスコンプライアンス チェックシート"]
[]
[null,"申請時\n（します）","（１）適正な施肥","報告時\n（しました）",null,null,"申請時\n（します）","（５）廃棄物の発生抑制、\n　　　適正な循環的な利用及び適正な処分","報告時\n（しました）"]
["①",null,"※種苗生産を行う場合（該当しない        ）\n肥料の適正な保管",null,null,"⑧",null,"廃棄物の削減に努め、適正に処理"]
["②",null,"※種苗生産を行う場合（該当しない        ）\n肥料の使用状況等の記録・保存に努める",null,null,"⑨",null,"未利用材の有効活用を検討"]
[]
[null,"申請時\n（します）","（２）適正な防除","報告時\n（しました）",null,null,"申請時\n（します）","（６）生物多様性への悪影響の防止","報告時\n（しました）"]
["③",null,"※農薬を使用する場合（該当しない        ）\n農薬の適正な使用・保管",null,null,"⑩",null,"生物多様性に配慮した事業実施（物資調達、施業等）に努める"]
["④",null,"※農薬を使用する場合（該当しない        ）\n農薬の使用状況等の記録・保存"]
[null,null,null,null,null,null,"申請時\n（します）","（７）環境関係法令の遵守等","報告時\n（しました）"]
[null,"申請時\n（します）","（３）エネルギーの節減","報告時\n（しました）",null,"⑪",null,"みどりの食料システム戦略の理解"]
["⑤",null,"林業機械や施設の電気・燃料の使用状況の記録・保存に努める",null,null,"⑫",null,"関係法令の遵守"]
["⑥",null,"省エネを意識し、不必要・非効率なエネルギー消費をしないように努める",null,null,"⑬",null,"林業機械等の装置・車両の適切な整備と管理の実施に努める"]
[null,null,null,null,null,"⑭",null,"正しい知識に基づく作業安全に努める"]
[null,"申請時\n（します）","（４）悪臭及び害虫の発生防止","報告時\n（しました）"]
["⑦",null,"悪臭・害虫の発生防止・低減に努める"]
[]
["（注1）申請を行う際に本様式の「該当なし」欄又は「申請時」欄に☑を付し、報告の際は「報告時」欄に☑を付して提出してください。"]
["（注2）記載内容に「該当しない」場合には□にチェックしてください。この場合、当該項目の申請時・報告時のチェックは不要です。"]

{"sheet":"様式第16号","index":3,"n_rows":97,"n_cols":16,"rows_kept":97,"cut":false,"hidden":false,"merged":[[42,14,42,15],[39,14,39,15],[39,12,39,13],[32,14,32,15],[33,14,33,15],[34,14,34,15],[36,14,36,15],[37,14,37,15],[38,14,38,15],[40,14,40,15],[41,14,41,15],[32,10,32,11],[32,12,32,13],[33,6,33,7],[33,8,33,9],[33,10,33,11],[33,12,33,13],[34,6,34,7],[34,8,34,9],[34,10,34,11],[34,12,34,13],[39,0,42,3],[39,4,39,5],[39,6,39,7],[39,8,39,9],[39,10,39,11],[1,0,1,15],[2,0,2,15],[5,0,5,15],[6,0,6,15],[8,0,8,15],[9,0,9,15],[26,0,26,15],[28,0,28,3],[28,4,28,5],[28,6,28,7],[28,8,28,9],[28,10,28,11],[28,12,28,13],[28,14,28,15],[12,0,12,15],[14,0,15,15],[16,0,16,15],[17,0,17,15],[32,6,32,7],[19,0,19,15],[32,4,32,5],[33,4,33,5],[29,0,30,3],[29,4,30,5],[29,6,30,7],[29,8,29,9],[29,10,29,11],[31,0,34,3],[29,14,29,15],[30,8,30,9],[30,10,30,11],[30,12,30,13],[30,14,30,15],[29,12,29,13],[31,4,31,5],[31,6,31,7],[31,8,31,9],[31,10,31,11],[31,12,31,13],[31,14,31,15],[34,4,34,5],[22,0,22,15],[32,8,32,9],[43,14,43,15],[44,6,45,7],[44,8,45,9],[44,10,45,11],[44,12,45,13],[44,14,45,15],[43,0,45,3],[43,4,45,5],[43,6,43,7],[43,8,43,9],[43,10,43,11],[43,12,43,13],[46,14,46,15],[47,4,47,5],[47,8,47,9],[47,10,47,11],[47,12,47,13],[47,14,47,15],[46,0,47,3],[46,4,46,5],[46,6,47,7],[46,8,46,9],[46,10,46,11],[46,12,46,13],[50,0,51,3],[50,4,51,5],[50,6,50,7],[50,8,50,9],[50,10,50,11],[48,0,49,3],[48,4,49,5],[48,6,49,7],[48,8,48,9],[48,10,48,11],[50,12,50,13],[50,14,50,15],[51,6,51,7],[51,8,51,9],[51,10,51,11],[51,12,51,13],[51,14,51,15],[48,14,48,15],[49,8,49,9],[49,10,49,11],[49,12,49,13],[49,14,49,15],[48,12,48,13],[52,14,52,15],[53,6,55,7],[53,8,55,9],[53,10,55,11],[53,12,55,13],[53,14,55,15],[52,0,55,3],[52,4,55,5],[52,6,52,7],[52,8,52,9],[52,10,52,11],[52,12,52,13],[56,14,56,15],[57,8,57,9],[57,10,57,11],[57,12,57,13],[57,14,57,15],[58,0,59,3],[58,4,59,5],[58,6,58,7],[59,6,59,7],[59,8,59,9],[56,0,57,3],[56,4,57,5],[56,6,57,7],[56,8,56,9],[56,10,56,11],[56,12,56,13],[59,10,59,11],[59,12,59,13],[59,14,59,15],[60,0,63,3],[60,4,63,5],[60,6,60,7],[60,8,63,9],[60,10,63,11],[60,12,63,13],[60,14,63,15],[74,0,74,3],[76,0,76,3],[61,6,63,7],[78,0,78,3],[80,0,80,3],[82,0,82,3],[83,0,83,3],[64,0,64,15],[67,0,67,12],[68,0,68,3],[69,0,69,3],[71,0,71,3],[72,0,72,3],[89,0,89,12],[92,0,92,12],[93,0,93,15],[94,0,94,15],[95,0,95,12],[96,0,96,15],[85,0,85,12],[86,0,86,3],[86,4,86,12],[86,13,86,15],[87,13,87,14],[88,13,88,14],[87,0,87,3],[88,0,88,3],[87,4,87,12],[88,4,88,12],[35,0,38,3],[35,4,35,5],[35,6,35,7],[35,8,35,9],[35,10,35,11],[35,12,35,13],[35,14,35,15],[36,4,36,5],[37,4,37,5],[38,4,38,5],[36,6,36,7],[36,8,36,9],[36,10,36,11],[36,12,36,13],[37,6,37,7],[37,8,37,9],[37,10,37,11],[37,12,37,13],[38,6,38,7],[38,8,38,9],[38,10,38,11],[38,12,38,13],[40,4,40,5],[41,4,41,5],[42,4,42,5],[41,6,41,7],[41,8,41,9],[41,10,41,11],[41,12,41,13],[42,6,42,7],[42,8,42,9],[42,10,42,11],[42,12,42,13],[40,6,40,7],[40,8,40,9],[40,10,40,11],[40,12,40,13]]}
["（別紙３　様式第16号）"]
["番　　　号"]
["年　月　日"]
[]
[]
["木の国協議会"]
["会長　岡田和久　殿"]
[]
["○○地域活動組織　　　　　"]
["代表　○○　○○　　"]
[]
[]
["○年度　森林・山村多面的機能発揮対策交付金に係る採択変更申請書（届出書）"]
[]
["　〇年〇月〇日付け第〇号で採択通知のあった森林・山村多面的機能発揮対策交付金を変更したいので、森林・山村多面的機能発揮対策実施要領（平成25年５月16日25林整森第74号林野庁長官通知）別紙３の第５の６に基づき、下記のとおり採択の変更を申請する（届け出る)。"]
[]
[]
["記"]
[]
["１．活動組織名"]
[]
[]
["２．協定の対象となる森林の位置"]
[]
[]
[]
["３．森林・山村多面的機能発揮対策交付金"]
[]
["取組メニュー",null,null,null,"交付単価等",null,"森林面積等",null,"交付金額",null,"都道府県の　　　　　　　支援額",null,"市町村の　　　　　　　支援額",null,"計"]
["活動推進費",null,null,null,"112,500円",null,"初年度のみ",null,"円",null,"円",null,"円",null,"円"]
[null,null,null,null,null,null,null,null,null,null,null,null,null,null,{"$f":"SUM(I31:N31)","v":0}]
["地域環境保全タイプ（里山林保全）",null,null,null,null,null,"ha",null,"円",null,"円",null,"円",null,"円"]
[null,null,null,null,"120,000円/ha",null,null,null,{"$f":"G33*120000","v":0},null,null,null,null,null,{"$f":"I33+K33+M33","v":0}]
[null,null,null,null,"115,000円/ha",null,null,null,{"$f":"G34*115000","v":0},null,null,null,null,null,{"$f":"I34+K34+M34","v":0}]
[null,null,null,null,"110,000円/ha",null,null,null,{"$f":"G35*110000","v":0},null,null,null,null,null,{"$f":"I35+K35+M35","v":0}]
["地域環境保全タイプ（侵入竹除去・竹林整備）",null,null,null,null,null,"ha",null,"円",null,"円",null,"円",null,"円"]
[null,null,null,null,"285,000円/ha",null,null,null,{"$f":"G37*285000","v":0},null,null,null,null,null,{"$f":"I37+K37+M37","v":0}]
[null,null,null,null,"265,000円/ha",null,null,null,{"$f":"G38*265000","v":0},null,null,null,null,null,{"$f":"I38+K38+M38","v":0}]
[null,null,null,null,"245,000円/ha",null,null,null,{"$f":"G39*245000","v":0},null,null,null,null,null,{"$f":"I39+K39+M39","v":0}]
["森林資源利用タイプ",null,null,null,null,null,"ha",null,"円",null,"円",null,"円",null,"円"]
[null,null,null,null,"120,000円/ha",null,null,null,{"$f":"G41*120000","v":0},null,null,null,null,null,{"$f":"I41+K41+M41","v":0}]
[null,null,null,null,"115,000円/ha",null,null,null,{"$f":"G42*115000","v":0},null,null,null,null,null,{"$f":"I42+K42+M42","v":0}]
[null,null,null,null,"110,000円/ha",null,null,null,{"$f":"G43*110000","v":0},null,null,null,null,null,{"$f":"I43+K43+M43","v":0}]
["森林機能強化タイプ",null,null,null,"800円/ｍ",null,"ｍ",null,"円",null,"円",null,"円",null,"円"]
[null,null,null,null,null,null,null,null,null,null,null,null,null,null,{"$f":"SUM(I45:N46)","v":0}]
[]
["関係人口創出・維持タイプ",null,null,null,"50,000円",null,null,null,"円",null,"円",null,"円",null,"円"]
[null,null,null,null,"/年",null,null,null,null,null,null,null,null,null,{"$f":"SUM(I48:N48)","v":0}]
["小　計",null,null,null,null,null,null,null,"円",null,"円",null,"円",null,"円"]
[null,null,null,null,null,null,null,null,{"$f":"SUM(I31:J48)","v":0},null,{"$f":"SUM(K31:L48)","v":0},null,{"$f":"SUM(M31:N48)","v":0},null,{"$f":"SUM(O31:P48)","v":0}]
["資機材・施設の整備等",null,null,null,"1/2 以内",null,"円",null,"円",null,"円",null,"円",null,"円"]
[]
["資機材・施設の整備等（林内作業車、薪割り機、薪ストーブ又は炭焼き小屋等）",null,null,null,"1/3 以内",null,"円",null,"円",null,"円",null,"円",null,"円"]
[]
[]
[]
["計",null,null,null,null,null,null,null,"円",null,"円",null,"円",null,"円"]
[null,null,null,null,null,null,null,null,{"$f":"I50+I52+I54","v":0},null,{"$f":"K50+K52+K54","v":0},null,{"$f":"M50+M52+M54","v":0},null,{"$f":"O50+O52+O54","v":0}]
["間伐等（除伐、枝打ちを含む。）の実施面積",null,null,null,null,null,"ha"]
[]
["当該年度に長期にわたり手入れをしていなかったと考えられる里山林を整備する面積",null,null,null,null,null,"ha"]
[]
[]
[]
["（注）都道府県の支援額、市町村の支援額及び計については、申請時に都道府県や市町村から金額を聞いている場合等に記載すること。"]
[]
[]
["４．月別スケジュール"]
["取組内容",null,null,null,"４月","５月","６月","７月","８月","９月","10月","11月","12月","１月","２月","３月"]
["１．活動推進費"]
[]
["２．実践活動"]
["　A-1 地域環境保全タイプ（里山林保全）"]
[]
["　A-2 地域環境保全タイプ（侵入竹除去、竹林整備）"]
[]
["　B 森林資源利用タイプ"]
[]
["　C 森林機能強化タイプ"]
[]
["　D 関係人口創出・維持タイプ"]
[]
["３．資機材・施設の整備等"]
[]
[]
["５．安全講習等の名称及び内容"]
["講習の名称",null,null,null,"講習の内容",null,null,null,null,null,null,null,null,"実施月"]
[null,null,null,null,null,null,null,null,null,null,null,null,null,null,null,"月"]
[null,null,null,null,null,null,null,null,null,null,null,null,null,null,null,"月"]
[]
[]
[]
["６．関係人口創出・維持タイプの活動内容"]
[]
[]
["７．計画変更の理由（減額の理由）"]
["　　※減額の場合は減額する金額も併せて記載すること。"]

{"sheet":"様式第18号","index":4,"n_rows":55,"n_cols":22,"rows_kept":55,"cut":false,"hidden":false,"merged":[[22,22,22,23],[32,22,32,23],[42,22,42,23],[23,15,23,19],[41,15,41,19],[42,15,42,19],[31,15,31,19],[32,15,32,19],[33,15,33,19],[25,0,25,4],[25,5,25,9],[26,0,33,9],[26,11,26,13],[26,14,26,23],[27,11,33,13],[29,17,29,23],[27,14,27,16],[27,17,27,23],[28,14,28,16],[28,17,28,23],[29,14,29,16],[30,14,33,14],[30,15,30,19],[15,0,15,4],[15,5,15,9],[16,0,23,9],[16,11,16,13],[16,14,16,23],[17,11,23,13],[17,14,17,16],[17,17,17,23],[18,14,18,16],[18,17,18,23],[19,14,19,16],[19,17,19,23],[20,14,23,14],[20,15,20,19],[21,15,21,19],[22,15,22,19],[45,14,45,19],[35,0,35,4],[35,5,35,9],[36,0,43,9],[36,11,36,13],[37,14,37,16],[37,17,37,23],[38,14,38,16],[36,14,36,23],[37,11,43,13],[38,17,38,23],[39,14,39,16],[39,17,39,23],[40,14,43,14],[40,15,40,19],[43,15,43,19],[9,14,9,16],[9,17,9,23],[10,14,13,14],[10,15,10,19],[11,15,11,19],[12,15,12,19],[12,22,12,23],[13,15,13,19],[7,17,7,23],[8,14,8,16],[0,0,0,6],[2,0,2,23],[3,14,3,16],[3,17,3,23],[4,14,4,16],[4,17,4,23],[5,0,5,4],[8,17,8,23],[5,5,5,9],[6,0,13,9],[6,11,6,13],[6,14,6,23],[7,11,13,13],[7,14,7,16]]}
["（別紙３　様式第18号）"]
["〇年度　森林・山村多面的機能発揮対策交付金"]
["活動記録兼作業写真整理帳（活動日毎の集合写真）"]
[null,null,null,null,null,null,null,null,null,null,null,null,null,null,"№："]
[null,null,null,null,null,null,null,null,null,null,null,null,null,null,"組織名："]
["　日　付",null,null,null,null,"令和○年○月○日"]
["ダブルクリックで写真を選択",null,null,null,null,null,null,null,null,null,null,"活動項目"]
[null,null,null,null,null,null,null,null,null,null,null,"取組内容",null,null,"活動場所"]
[null,null,null,null,null,null,null,null,null,null,null,null,null,null,"活動内容"]
[null,null,null,null,null,null,null,null,null,null,null,null,null,null,"実施時間"]
[null,null,null,null,null,null,null,null,null,null,null,null,null,null,"活動参加人数","構成員",null,null,null,null,null,"名"]
[null,null,null,null,null,null,null,null,null,null,null,null,null,null,null,"構成員以外",null,null,null,null,null,"名"]
[null,null,null,null,null,null,null,null,null,null,null,null,null,null,null,"合　計",null,null,null,null,null,"名"]
[null,null,null,null,null,null,null,null,null,null,null,null,null,null,null,"うち地域外関係者",null,null,null,null,null,"名"]
[]
["　日　付",null,null,null,null,"令和○年○月○日"]
["ダブルクリックで写真を選択",null,null,null,null,null,null,null,null,null,null,"活動項目"]
[null,null,null,null,null,null,null,null,null,null,null,"取組内容",null,null,"活動場所"]
[null,null,null,null,null,null,null,null,null,null,null,null,null,null,"活動内容"]
[null,null,null,null,null,null,null,null,null,null,null,null,null,null,"実施時間"]
[null,null,null,null,null,null,null,null,null,null,null,null,null,null,"活動参加人数","構成員",null,null,null,null,null,"名"]
[null,null,null,null,null,null,null,null,null,null,null,null,null,null,null,"構成員以外",null,null,null,null,null,"名"]
[null,null,null,null,null,null,null,null,null,null,null,null,null,null,null,"合　計",null,null,null,null,null,"名"]
[null,null,null,null,null,null,null,null,null,null,null,null,null,null,null,"うち地域外関係者",null,null,null,null,null,"名"]
[]
["　日　付",null,null,null,null,"令和○年○月○日"]
["ダブルクリックで写真を選択",null,null,null,null,null,null,null,null,null,null,"活動項目"]
[null,null,null,null,null,null,null,null,null,null,null,"取組内容",null,null,"活動場所"]
[null,null,null,null,null,null,null,null,null,null,null,null,null,null,"活動内容"]
[null,null,null,null,null,null,null,null,null,null,null,null,null,null,"実施時間"]
[null,null,null,null,null,null,null,null,null,null,null,null,null,null,"活動参加人数","構成員",null,null,null,null,null,"名"]
[null,null,null,null,null,null,null,null,null,null,null,null,null,null,null,"構成員以外",null,null,null,null,null,"名"]
[null,null,null,null,null,null,null,null,null,null,null,null,null,null,null,"合　計",null,null,null,null,null,"名"]
[null,null,null,null,null,null,null,null,null,null,null,null,null,null,null,"うち地域外関係者",null,null,null,null,null,"名"]
[]
["　日　付",null,null,null,null,"令和○年○月○日"]
["ダブルクリックで写真を選択",null,null,null,null,null,null,null,null,null,null,"活動項目"]
[null,null,null,null,null,null,null,null,null,null,null,"取組内容",null,null,"活動場所"]
[null,null,null,null,null,null,null,null,null,null,null,null,null,null,"活動内容"]
[null,null,null,null,null,null,null,null,null,null,null,null,null,null,"実施時間"]
[null,null,null,null,null,null,null,null,null,null,null,null,null,null,"活動参加人数","構成員",null,null,null,null,null,"名"]
[null,null,null,null,null,null,null,null,null,null,null,null,null,null,null,"構成員以外",null,null,null,null,null,"名"]
[null,null,null,null,null,null,null,null,null,null,null,null,null,null,null,"合　計",null,null,null,null,null,"名"]
[null,null,null,null,null,null,null,null,null,null,null,null,null,null,null,"うち地域外関係者",null,null,null,null,null,"名"]
[]
["活動項目"]
["①：活動推進費"]
["②：地域環境保全タイプ（里山林保全）"]
["③：地域環境保全タイプ（侵入竹除去・竹林整備）"]
["④：森林資源利用タイプ　　　"]
["⑤：森林機能強化タイプ　"]
["⑥：関係人口創出・維持タイプ"]
[]
["撮影者含む"]
["　　　　　"]

{"sheet":"様式第18号別添1_（場所毎）","index":5,"n_rows":43,"n_cols":16,"rows_kept":43,"cut":false,"hidden":false,"merged":[[0,0,0,6],[1,0,1,24],[2,15,2,17],[2,18,2,24],[3,15,3,17],[3,18,3,24],[4,15,4,17],[4,18,4,24],[5,0,5,9],[6,0,6,2],[6,3,6,4],[6,5,6,9],[8,18,8,24],[9,15,9,17],[9,18,9,24],[10,15,10,17],[10,18,10,24],[21,15,21,17],[11,15,11,17],[15,0,15,9],[16,0,16,2],[16,3,16,4],[16,5,16,9],[17,0,23,9],[17,11,17,14],[17,15,17,24],[18,11,23,14],[18,15,18,17],[7,0,13,9],[7,11,7,14],[7,15,7,24],[8,11,9,14],[8,15,8,17],[18,18,18,24],[19,15,19,17],[19,18,19,24],[20,15,20,17],[20,18,20,24],[25,0,25,9],[26,0,26,2],[26,3,26,4],[26,5,26,9],[27,0,33,9],[34,0,34,9],[41,0,41,24],[42,0,42,24],[27,15,27,24],[28,11,33,14],[28,15,28,17],[28,18,28,24],[29,15,29,17],[29,18,29,24],[30,15,30,17],[30,18,30,24],[31,15,31,17],[27,11,27,14]]}
["（別紙３　様式第18号　別添）"]
["作業写真整理帳（活動場所毎の作業写真）"]
[null,null,null,null,null,null,null,null,null,null,null,null,null,null,null,"№："]
[null,null,null,null,null,null,null,null,null,null,null,null,null,null,null,"組織名："]
[]
["作業前"]
[null,null,null,null,null,"令和○年○月○日"]
["ダブルクリックで写真を選択",null,null,null,null,null,null,null,null,null,null,"活動項目"]
[null,null,null,null,null,null,null,null,null,null,null,"取組内容",null,null,null,"活動場所"]
[null,null,null,null,null,null,null,null,null,null,null,null,null,null,null,"活動内容"]
[]
[]
[]
[]
[]
["作業中"]
[null,null,null,null,null,"令和○年○月○日"]
["ダブルクリックで写真を選択"]
[]
[]
[]
[]
[]
[]
[]
["作業後"]
[null,null,null,null,null,"令和○年○月○日"]
["ダブルクリックで写真を選択"]
[]
[]
[]
[]
[]
[]
["活動項目"]
["①：活動推進費"]
["②：地域環境保全タイプ（里山林保全）"]
["③：地域環境保全タイプ（侵入竹除去・竹林整備）"]
["④：森林資源利用タイプ　　　"]
["⑤：森林機能強化タイプ　"]
["⑥：関係人口創出・維持タイプ"]
["※活動前、活動中、活動後の状況について、それぞれ撮影すること。"]
["※写真撮影は作業起番ごとに１箇所以上で撮影すること。\n　　ただし、作業起番面積が1ha以上の場合は2箇所以上とする。"]

{"sheet":"様式第19号-1","index":6,"n_rows":21,"n_cols":15,"rows_kept":21,"cut":false,"hidden":false,"merged":[[1,10,1,12],[6,12,7,12],[6,0,7,0],[6,1,7,1],[6,2,7,2],[6,3,7,3],[6,4,7,4],[6,5,6,8],[6,9,7,9],[6,10,7,10],[6,11,7,11],[4,9,4,10],[4,11,4,12],[3,0,3,8]]}
["（別紙３　様式第19号）"]
[null,null,null,null,null,null,null,null,null,"組織名："]
[]
["○年度　森林・山村多面的機能発揮対策交付金（金銭出納簿）"]
[null,null,null,null,null,null,null,null,null,"①活動推進費"]
[null,null,null,null,null,null,null,null,null,null,null,null,null,null,"①活動推進費"]
["日付","タイプ","内容","収入（円）","立替（円）","支出（円）",null,null,null,"資機材購入費のうち交付金充当額","領収書等 番号","活動実施日","備考（財産の保管場所）",null,"②里山林整備"]
[null,null,null,null,null,"人件費","委託費","その他","資機材の購入等",null,null,null,null,null,"③竹林整備"]
[null,null,null,null,null,null,null,null,null,null,null,null,null,null,"④資源利用"]
[null,null,null,null,null,null,null,null,null,null,null,null,null,null,"⑤機能強化"]
[null,null,null,null,null,null,null,null,null,null,null,null,null,null,"⑥関係人口"]
[null,null,null,null,null,null,null,null,null,null,null,null,null,null,"⑦資機材"]
[]
[]
[]
[]
[]
[]
[]
[]
[null,null,null,{"$f":"SUM(D9:D20)","v":0},{"$f":"SUM(E9:E20)","v":0},0,0,0,0,0]

{"sheet":"様式第19号 -2","index":7,"n_rows":20,"n_cols":15,"rows_kept":20,"cut":false,"hidden":false,"merged":[[6,10,7,10],[6,11,7,11],[6,12,7,12],[1,10,1,12],[3,0,3,8],[4,9,4,10],[4,11,4,12],[6,0,7,0],[6,1,7,1],[6,2,7,2],[6,3,7,3],[6,4,7,4],[6,5,6,8],[6,9,7,9]]}
["（別紙３　様式第19号）"]
[null,null,null,null,null,null,null,null,null,"組織名："]
[]
["○年度　森林・山村多面的機能発揮対策交付金（金銭出納簿）"]
[null,null,null,null,null,null,null,null,null,"①活動推進費"]
[null,null,null,null,null,null,null,null,null,null,null,null,null,null,"①活動推進費"]
["日付","タイプ","内容","収入（円）","立替（円）","支出（円）",null,null,null,"資機材購入費のうち交付金充当額","領収書等 番号","活動実施日","備考（財産の保管場所）",null,"②里山林整備"]
[null,null,null,null,null,"人件費","委託費","その他","資機材の購入等",null,null,null,null,null,"③竹林整備"]
[null,null,null,null,null,null,null,null,null,null,null,null,null,null,"④資源利用"]
[null,null,null,null,null,null,null,null,null,null,null,null,null,null,"⑤機能強化"]
[null,null,null,null,null,null,null,null,null,null,null,null,null,null,"⑥関係人口"]
[null,null,null,null,null,null,null,null,null,null,null,null,null,null,"⑦資機材"]
[]
[]
[]
[]
[]
[]
[]
[null,null,null,{"$f":"SUM(D9:D19)","v":0},{"$f":"SUM(E9:E19)","v":0},0,0,0,0,0]

{"sheet":"様式第19号 -3","index":8,"n_rows":20,"n_cols":15,"rows_kept":20,"cut":false,"hidden":false,"merged":[[6,10,7,10],[6,11,7,11],[6,12,7,12],[1,10,1,12],[3,0,3,8],[4,9,4,10],[4,11,4,12],[6,0,7,0],[6,1,7,1],[6,2,7,2],[6,3,7,3],[6,4,7,4],[6,5,6,8],[6,9,7,9]]}
["（別紙３　様式第19号）"]
[null,null,null,null,null,null,null,null,null,"組織名："]
[]
["○年度　森林・山村多面的機能発揮対策交付金（金銭出納簿）"]
[null,null,null,null,null,null,null,null,null,"①活動推進費"]
[null,null,null,null,null,null,null,null,null,null,null,null,null,null,"①活動推進費"]
["日付","タイプ","内容","収入（円）","立替（円）","支出（円）",null,null,null,"資機材購入費のうち交付金充当額","領収書等 番号","活動実施日","備考（財産の保管場所）",null,"②里山林整備"]
[null,null,null,null,null,"人件費","委託費","その他","資機材の購入等",null,null,null,null,null,"③竹林整備"]
[null,null,null,null,null,null,null,null,null,null,null,null,null,null,"④資源利用"]
[null,null,null,null,null,null,null,null,null,null,null,null,null,null,"⑤機能強化"]
[null,null,null,null,null,null,null,null,null,null,null,null,null,null,"⑥関係人口"]
[null,null,null,null,null,null,null,null,null,null,null,null,null,null,"⑦資機材"]
[]
[]
[]
[]
[]
[]
[]
[null,null,null,{"$f":"SUM(D9:D19)","v":0},{"$f":"SUM(E9:E19)","v":0},0,0,0,0,0]

{"sheet":"様式第20号","index":9,"n_rows":28,"n_cols":2,"rows_kept":28,"cut":false,"hidden":false,"merged":[[0,2,0,4],[11,0,11,4],[16,0,16,4],[23,0,23,4],[27,0,27,4],[1,0,1,4],[4,0,4,4],[5,0,5,4],[6,0,6,4],[8,0,8,4]]}
["（別紙３　様式第20号）","組織名："]
["令和6年度　モニタリング結果報告書"]
[]
["１　活動の目標等"]
["タイプ名："]
["目標："]
["モニタリング調査方法："]
[]
["２　活動実施前の標準地の状況（〇年度）　　　　　　　　　　    写真"]
["標準地の状況を記載"]
[]
["３　活動計画１年目の標準地の状況（〇年度）　　　　　　　　　　写真"]
["標準地の状況を記載"]
["目標達成度"]
["次年度に向けた改善策"]
[]
["４　活動計画２年目の標準地の状況（〇年度）　　　　　　　　　　写真"]
["標準地の状況を記載"]
["目標達成度"]
["次年度に向けた改善策"]
[]
[]
[]
["５　活動計画３年目の標準地の状況（〇年度）　　　　　　　　　　写真"]
["標準地の状況を記載"]
["目標達成度"]
[]
["（注）目標の設定及び標準地の状況の記載については、別に定めるガイドラインを参考とすること。"]

{"sheet":"様式21　別紙１","index":10,"n_rows":14,"n_cols":33,"rows_kept":14,"cut":false,"hidden":false,"merged":[[3,17,7,17],[5,28,7,28],[0,1,0,32],[3,1,7,1],[3,2,7,2],[3,3,7,3],[3,4,7,4],[3,5,7,5],[3,15,7,15],[3,16,7,16],[3,18,3,31],[3,32,7,32],[4,6,4,7],[4,8,7,8],[4,9,7,9],[4,10,7,10],[4,26,4,31],[6,25,7,25],[5,21,5,23],[5,24,5,25],[5,26,7,26],[5,27,7,27],[3,6,3,14],[1,1,1,32],[5,6,7,6],[5,7,7,7],[5,18,7,18],[5,19,7,19],[5,20,7,20],[4,11,7,11],[4,12,7,12],[4,13,6,14],[4,18,4,25],[5,29,7,29],[5,30,6,31],[6,21,7,21],[6,22,6,23],[6,24,7,24]]}
[null,"（別紙３　様式第21号　別紙１）"]
[null,"実施状況整理票"]
[]
[null,"都道府県名","地域協議会名","市町村名","対象森林所在市町村名","活動組織名","取組内容",null,null,null,null,null,null,null,null,"構成員(名)","地域外関係者の参加者数（延べ人数）","アドバイザーの活用の有無","交付金の使途（円）",null,null,null,null,null,null,null,null,null,null,null,null,null,"備考"]
[null,null,null,null,null,null,"地域環境保全タイプ",null,"森林資源利用タイプ","森林機能強化タイプ","関係人口創出・維持タイプ（該当の有無）"," 間伐等(除伐、枝打ち含む)の実施面積","当該年度に長期にわたり手入れをされていなかったと考えられる里山林を整備した面積","資機材・施設の整備(円)",null,null,null,null,"収入",null,null,null,null,null,null,null,"支出"]
[null,null,null,null,null,null,"里山林保全","侵入竹除去・竹林整備　",null,null,null,null,null,null,null,null,null,null,"合計","自己負担額","小計","国庫分",null,null,"地方分",null,"合計","人件費","委託料","その他","資機材・施設の整備"]
[null,null,null,null,null,null,null,null,null,null,null,null,null,null,null,null,null,null,null,null,null,"取組に対する交付金","資機材・施設の整備に対する交付金",null,"都道府県の支援額","市町村の支援額"]
[null,null,null,null,null,null,null,null,null,null,null,null,null,"交付率\n1/2以内","交付率\n1/3以内",null,null,null,null,null,null,null,"交付率\n1/2以内","交付率\n1/3以内",null,null,null,null,null,null,"交付率\n1/2以内","交付率\n1/3以内"]
[null,"和歌山県","木の国協議会",null,null,null,null,null,null,null,null,null,null,null,null,null,null,null,{"$f":"T9+U9","v":0},null,{"$f":"SUM(V9:X9)","v":0},null,null,null,null,null,{"$f":"SUM(AB9:AF9)","v":0}]
[]
[null,"１：支出については自己負担額を含めた額を記載すること。"]
[null,"２：関係人口創出・維持タイプに該当する場合は「1」を記入すること。"]
[null,"３：アドバイザーを活用した場合は、①～⑧の指導・助言の内容を記入すること。（複数回活用した場合は複数記載）"]
[null,null,"①森林施業、②侵入竹の伐採・除去・利活用、③森林資源の活用、④森林生態、植生、⑤関係人口、⑥組織づくり、⑦安全管理、⑧その他"]

{"sheet":"様式21号　別紙２","index":11,"n_rows":112,"n_cols":36,"rows_kept":112,"cut":false,"hidden":false,"merged":[[87,1,87,14],[87,15,87,18],[87,19,87,22],[87,23,87,26],[88,1,88,14],[88,15,88,18],[88,19,88,22],[88,23,88,26],[84,1,84,14],[84,15,84,18],[84,19,84,22],[84,23,84,26],[85,1,85,14],[85,19,85,22],[85,23,85,26],[86,1,86,14],[86,15,86,18],[86,19,86,22],[86,23,86,26],[83,1,83,14],[83,15,83,18],[83,19,83,22],[83,23,83,26],[65,2,65,27],[66,2,66,27],[67,2,67,27],[68,2,68,27],[69,2,69,27],[71,2,73,26],[50,1,53,13],[50,14,53,27],[54,1,61,13],[54,14,56,27],[64,1,64,27],[82,1,82,14],[82,15,82,18],[82,19,82,22],[82,23,82,26],[57,14,59,27],[60,14,61,27],[38,1,42,1],[38,2,38,24],[39,2,39,24],[40,2,40,24],[41,2,41,24],[42,2,42,24],[43,1,43,27],[45,1,45,27],[48,1,49,27],[44,1,44,28],[38,25,38,27],[39,25,39,27],[40,25,40,27],[41,25,41,27],[42,25,42,27],[28,1,32,1],[28,2,28,24],[29,2,29,24],[30,2,30,24],[31,2,31,24],[32,2,32,24],[33,1,37,1],[33,2,33,24],[34,2,34,24],[35,2,35,24],[36,2,36,24],[37,2,37,24],[16,25,17,27],[18,25,18,27],[19,25,19,27],[20,25,20,27],[21,25,21,27],[22,25,22,27],[23,1,27,1],[23,2,23,24],[24,2,24,24],[25,2,25,24],[26,2,26,24],[27,2,27,24],[14,1,14,27],[1,1,1,27],[3,1,3,5],[3,6,3,21],[3,22,3,24],[3,25,3,26],[4,1,4,5],[4,6,4,8],[4,9,4,15],[4,16,4,18],[4,19,4,27],[5,1,5,5],[6,1,7,5],[8,1,8,5],[9,1,9,5],[9,6,9,27],[15,1,15,28],[33,25,33,27],[34,25,34,27],[35,25,35,27],[36,25,36,27],[37,25,37,27],[28,25,28,27],[29,25,29,27],[30,25,30,27],[31,25,31,27],[32,25,32,27],[23,25,23,27],[24,25,24,27],[25,25,25,27],[26,25,26,27],[27,25,27,27],[16,1,17,1],[16,2,17,24],[18,1,22,1],[18,2,18,24],[19,2,19,24],[20,2,20,24],[21,2,21,24],[22,2,22,24]]}
[null,"（別紙３　様式第21号　別紙２）"]
[null,"森林・山村多面的機能発揮に対する効果チェックシート"]
[null,"１．活動組織の概要"]
[null,"①活動組織名",null,null,null,null,null,null,null,null,null,null,null,null,null,null,null,null,null,null,null,null,"取得年数",null,null,null,null,"年"]
[null,"②主な対象森林\nの所在地",null,null,null,null,"都道\n府県",null,null,null,null,null,null,null,null,null,"市区\n町村",null,null,null,null,null,null,null,null,null,null,null,null,null,null,null,null,false]
[null,"③活動計画の取組年度",null,null,null,null,null,"　１年目",null,null,null,"   ２年目",null,null,null,null,"３年目",null,null,null,null,null,null,null,null,null,null,null,null,null,null,null,null,false,false]
[null,"④活動タイプ等\n（○年度）",null,null,null,null,"　    活動推進費",null,null,null,null,null,"里山林保全",null,null,null,null,"竹林整備",null,null,null,null,"森林資源利用",null,null,null,null,null,null,null,null,null,null,false,false]
[null,null,null,null,null,null,"　    森林機能強化",null,null,null,null,null,null,"関係人口",null,null,null,null,"資機材購入",null,null,null,null,null,null,null,null,null,null,null,null,null,null,false,false]
[null,"⑤地域住民の比率",null,null,null,null,"　   90%以上",null,null,null,null,"75～90%",null,null,null,"50～75%",null,null,null,"25～50%",null,null,null,"25%未満",null,null,null,null,null,null,null,null,null,false,false]
[null,"⑥活動目標",null,null,null,null,null,null,null,null,null,null,null,null,null,null,null,null,null,null,null,null,null,null,null,null,null,null,null,null,null,null,null,false,false]
[null,"※③・④・⑤欄は、該当する□又は○にチェックを付けてください。",null,null,null,null,null,null,null,null,null,null,null,null,null,null,null,null,null,null,null,null,null,null,null,null,null,null,null,null,null,null,null,false,false]
[null,"※「地域住民」とは、活動対象地と大字単位で同じか隣接する場所に居住する方を指します。",null,null,null,null,null,null,null,null,null,null,null,null,null,null,null,null,null,null,null,null,null,null,null,null,null,null,null,null,null,null,null,false,false]
[]
[null,"２．活動の変化・成果の確認（※本交付金の取得前と比較の上でご回答ください。）",null,null,null,null,null,null,null,null,null,null,null,null,null,null,null,null,null,null,null,null,null,null,null,null,null,null,null,null,null,null,null,false,false]
[null,"※以下の項目について、実現ができていると思う場合には、右側の□にチェックを入れてください。"]
[null,"※チェック欄は、活動計画1年目の時は「1年間」、2年目の時は「2年間」、3年目の時は「3年間」の活動を通じた変化・効果を記載してください。"]
[null,"項目","効果",null,null,null,null,null,null,null,null,null,null,null,null,null,null,null,null,null,null,null,null,null,null,"チェック欄",null,null,null,null,null,null,null,false,false]
[null,null,null,null,null,null,null,null,null,null,null,null,null,null,null,null,null,null,null,null,null,null,null,null,null,null,null,null,null,null,null,null,null,false,false]
[null,"（横展開）\n活動の広がり","　活動組織の構成員数が増加した",null,null,null,null,null,null,null,null,null,null,null,null,null,null,null,null,null,null,null,null,null,null,null,null,null,null,null,null,null,null,false,false]
[null,null,"　幅広い年齢層が協力して活動を行った",null,null,null,null,null,null,null,null,null,null,null,null,null,null,null,null,null,null,null,null,null,null,null,null,null,null,null,null,null,null,false,false]
[null,null,"　新聞や雑誌、広報誌などで活動を紹介された",null,null,null,null,null,null,null,null,null,null,null,null,null,null,null,null,null,null,null,null,null,null,null,null,null,null,null,null,null,null,false,false]
[null,null,"　他団体（活動団体、企業、自治体等）との協力関係がうまれた",null,null,null,null,null,null,null,null,null,null,null,null,null,null,null,null,null,null,null,null,null,null,null,null,null,null,null,null,null,null,false,false]
[null,null,"　外部（異なる集落や都市）の住民も森林整備活動に参加した",null,null,null,null,null,null,null,null,null,null,null,null,null,null,null,null,null,null,null,null,null,null,null,null,null,null,null,null,null,null,false,false]
[null,"（自立性）\n活動の持続性","　構成員が森林整備のための技術や安全管理の資格を取得した",null,null,null,null,null,null,null,null,null,null,null,null,null,null,null,null,null,null,null,null,null,null,null,null,null,null,null,null,null,null,false,false]
[null,null,"　森林整備のための機材や道具を使用できる構成員数が増えた",null,null,null,null,null,null,null,null,null,null,null,null,null,null,null,null,null,null,null,null,null,null,null,null,null,null,null,null,null,null,false,false]
[null,null,"　森林整備のために利用可能な本交付金以外の資金が増えた",null,null,null,null,null,null,null,null,null,null,null,null,null,null,null,null,null,null,null,null,null,null,null,null,null,null,null,null,null,null,false,false]
[null,null,"　若い世代（40歳未満）が参加しており、長期的な活動が可能である",null,null,null,null,null,null,null,null,null,null,null,null,null,null,null,null,null,null,null,null,null,null,null,null,null,null,null,null,null,null,false,false]
[null,null,"　本交付金終了後に森林整備活動を継続できる見込みがある",null,null,null,null,null,null,null,null,null,null,null,null,null,null,null,null,null,null,null,null,null,null,null,null,null,null,null,null,null,null,true,false]
[null,"（景観）\n地域貢献","　対象森林が明るくなり、見通しが良くなった",null,null,null,null,null,null,null,null,null,null,null,null,null,null,null,null,null,null,null,null,null,null,null,null,null,null,null,null,null,null,false,false]
[null,null,"　活動組織の構成員以外から景観が良くなったと言われるようになった",null,null,null,null,null,null,null,null,null,null,null,null,null,null,null,null,null,null,null,null,null,null,null,null,null,null,null,null,null,null,false,false]
[null,null,"　対象森林や周辺で不法投棄されるゴミの量が減った／ゴミのない状態を維持している",null,null,null,null,null,null,null,null,null,null,null,null,null,null,null,null,null,null,null,null,null,null,null,null,null,null,null,null,null,null,false,false]
[null,null,"　対象森林が、観光資源としても利用できるようになった",null,null,null,null,null,null,null,null,null,null,null,null,null,null,null,null,null,null,null,null,null,null,null,null,null,null,null,null,null,null,false,false]
[null,null,"　在来種や歴史性を考慮した地域ならではの景観を守っている",null,null,null,null,null,null,null,null,null,null,null,null,null,null,null,null,null,null,null,null,null,null,null,null,null,null,null,null,null,null,false,false]
[null,"（文化・教育）\n地域貢献","　対象森林が、地域の憩いの場として活用されている",null,null,null,null,null,null,null,null,null,null,null,null,null,null,null,null,null,null,null,null,null,null,null,null,null,null,null,null,null,null,null,false]
[null,null,"　対象森林が、地域の子供たちの自然体験活動や学習・教育の場となっている",null,null,null,null,null,null,null,null,null,null,null,null,null,null,null,null,null,null,null,null,null,null,null,null,null,null,null,null,null,null,null,false]
[null,null,"　地域の幼稚園、保育園、小中学校のいずれかと協力関係にある",null,null,null,null,null,null,null,null,null,null,null,null,null,null,null,null,null,null,null,null,null,null,null,null,null,null,null,null,null,null,null,false]
[null,null,"　対象森林から得られた資源を伝統工芸品づくりに活用した",null,null,null,null,null,null,null,null,null,null,null,null,null,null,null,null,null,null,null,null,null,null,null,null,null,null,null,null,null,null,null,false]
[null,null,"　伝統文化の維持や郷土食づくりに貢献する活動を行った",null,null,null,null,null,null,null,null,null,null,null,null,null,null,null,null,null,null,null,null,null,null,null,null,null,null,null,null,null,null,null,false]
[null,"（その他）\n地域貢献","　鳥獣被害が軽減された（野生鳥獣の出没・侵入が減った）",null,null,null,null,null,null,null,null,null,null,null,null,null,null,null,null,null,null,null,null,null,null,null,null,null,null,null,null,null,null,null,false]
[null,null,"　地域の農業と連携した活動を行った",null,null,null,null,null,null,null,null,null,null,null,null,null,null,null,null,null,null,null,null,null,null,null,null,null,null,null,null,null,null,null,false]
[null,null,"　希少動植物の保護や生物多様性の保全に貢献している",null,null,null,null,null,null,null,null,null,null,null,null,null,null,null,null,null,null,null,null,null,null,null,null,null,null,null,null,null,null,null,false]
[null,null,"　土砂流出が軽減されるなど自然災害の防止に役立った",null,null,null,null,null,null,null,null,null,null,null,null,null,null,null,null,null,null,null,null,null,null,null,null,null,null,null,null,null,null,null,false]
[null,null,"　特産品の開発や地域の雇用創出など地域経済の活性化に貢献している",null,null,null,null,null,null,null,null,null,null,null,null,null,null,null,null,null,null,null,null,null,null,null,null,null,null,null,null,null,null,null,false]
[null,"※災害等が発生し、計画どおりに活動ができなかった場合には、その理由を特記事項にご記入ください。",null,null,null,null,null,null,null,null,null,null,null,null,null,null,null,null,null,null,null,null,null,null,null,null,null,null,null,null,null,null,null,false,false]
[]
[null,null,null,null,null,null,null,null,null,null,null,null,null,null,null,null,null,null,null,null,null,null,null,null,null,null,null,null,null,null,null,null,null,false,false]
[]
[null,"３．関係人口の創出について",null,null,null,null,null,null,null,null,null,null,null,null,null,null,null,null,null,null,null,null,null,null,null,null,null,null,null,null,null,null,null,false,false]
[null,"　今年度に実施した本交付金の活動における地域外からの活動参加者の「延べ人数」及び昨年度の参加者の「延べ人数」の比較について記載してください。"]
[]
[null,"\n　①今年度の地域外からの参加者数\n　　　（延べ人数を記載してください。）",null,null,null,null,null,null,null,null,null,null,null,null,"\n\n　　　　　　　　　　　　　　　　　　　　　　　　　　　人",null,null,null,null,null,null,null,null,null,null,null,null,null,null,null,null,null,null,null,false]
[null,null,null,null,null,null,null,null,null,null,null,null,null,null,null,null,null,null,null,null,null,null,null,null,null,null,null,null,null,null,null,null,null,null,false]
[null,null,null,null,null,null,null,null,null,null,null,null,null,null,null,null,null,null,null,null,null,null,null,null,null,null,null,null,null,null,null,null,null,null,false]
[null,null,null,null,null,null,null,null,null,null,null,null,null,null,null,null,null,null,null,null,null,null,null,null,null,null,null,null,null,null,null,null,null,null,false]
[null,"\n\n　②昨年度の地域外からの参加者との比較\n　　（延べ人数で比較して、「増加した」か「減少した」\n　　　のどちらかに記載してださい。）\n",null,null,null,null,null,null,null,null,null,null,null,null,"    増加した　（　　　　　　　　　　　　　　　　　人）",null,null,null,null,null,null,null,null,null,null,null,null,null,null,null,null,null,null,null,false]
[null,null,null,null,null,null,null,null,null,null,null,null,null,null,null,null,null,null,null,null,null,null,null,null,null,null,null,null,null,null,null,null,null,null,false]
[null,null,null,null,null,null,null,null,null,null,null,null,null,null,null,null,null,null,null,null,null,null,null,null,null,null,null,null,null,null,null,null,null,null,false]
[null,null,null,null,null,null,null,null,null,null,null,null,null,null,"    減少した　（　　　　　　　　　　　　　　　　　人）",null,null,null,null,null,null,null,null,null,null,null,null,null,null,null,null,null,null,null,false]
[]
[]
[null,null,null,null,null,null,null,null,null,null,null,null,null,null,"　　変化なし",null,null,null,null,null,null,null,null,null,null,null,null,null,null,null,null,null,null,null,false,false]
[]
[]
[null,"■ 特筆事項（災害等の状況）",null,null,null,null,null,null,null,null,null,null,null,null,null,null,null,null,null,null,null,null,null,null,null,null,null,null,null,null,null,null,null,null,false,false]
[null,"　自然災害等により、活動を計画どおりに行うことが困難な状況が生じた場合は、期待どおりの効果が得られ\nないことも想定されます。\n　災害等が発生し計画どおりに活動ができなかった場合には、その理由を選択し、該当がなければその他に\n簡単にご記入ください。",null,null,null,null,null,null,null,null,null,null,null,null,null,null,null,null,null,null,null,null,null,null,null,null,null,null,null,null,null,null,null,null,false,false]
[null,null,"災害等で活動区域が被害を受け、活動が行えなかった。",null,null,null,null,null,null,null,null,null,null,null,null,null,null,null,null,null,null,null,null,null,null,null,null,null,null,null,null,null,null,null,false,false]
[null,null,"災害等で活動区域までの道が被害を受け、活動が行えなかった。",null,null,null,null,null,null,null,null,null,null,null,null,null,null,null,null,null,null,null,null,null,null,null,null,null,null,null,null,null,null,null,false,false]
[null,null,"土地所有者との協定が締結できず活動を行えなかった。",null,null,null,null,null,null,null,null,null,null,null,null,null,null,null,null,null,null,null,null,null,null,null,null,null,null,null,null,null,null,null,false,false]
[null,null,"感染症等の感染防止ため活動を行えなかった。",null,null,null,null,null,null,null,null,null,null,null,null,null,null,null,null,null,null,null,null,null,null,null,null,null,null,null,null,null,null,null,false]
[null,null,"その他",null,null,null,null,null,null,null,null,null,null,null,null,null,null,null,null,null,null,null,null,null,null,null,null,null,null,null,null,null,null,null,false]
[null,null,null,null,null,null,null,null,null,null,null,null,null,null,null,null,null,null,null,null,null,null,null,null,null,null,null,null,null,null,null,null,null,null,false]
[null,null,null,null,null,null,null,null,null,null,null,null,null,null,null,null,null,null,null,null,null,null,null,null,null,null,null,null,null,null,null,null,null,null,false]
[null,null,null,null,null,null,null,null,null,null,null,null,null,null,null,null,null,null,null,null,null,null,null,null,null,null,null,null,null,null,null,null,null,null,false]
[null,null,null,null,null,null,null,null,null,null,null,null,null,null,null,null,null,null,null,null,null,null,null,null,null,null,null,null,null,null,null,null,null,null,false]
[]
[]
[]
[]
[null,"　",null,null,null,null,null,null,null,null,null,null,null,null,null,null,null,null,null,null,null,null,null,null,null,null,null,null,null,null,null,null,null,null,false]
[]
[null,null,null,null,null,null,null,null,null,null,null,null,null,null,null,null,null,null,null,null,null,null,null,null,null,null,null,null,null,null,null,null,null,null,false]
[null,null,null,null,null,null,null,null,null,null,null,null,null,null,null,null,null,null,null,null,null,null,null,null,null,null,null,null,null,null,null,null,null,null,false]
[null,null,null,null,null,null,null,null,null,null,null,null,null,null,null,null,null,null,null,null,null,null,null,null,null,null,null,null,null,null,null,null,null,null,false]
[null,null,null,null,null,null,null,null,null,null,null,null,null,null,null,null,null,null,null,null,null,null,null,null,null,null,null,null,null,null,null,null,null,null,false]
[null,null,null,null,null,null,null,null,null,null,null,null,null,null,null,null,null,null,null,null,null,null,null,null,null,null,null,null,null,null,null,null,null,null,false]
[null,null,null,null,null,null,null,null,null,null,null,null,null,null,null,null,null,null,null,null,null,null,null,null,null,null,null,null,null,null,null,null,null,null,false]
[null,null,null,null,null,null,null,null,null,null,null,null,null,null,null,null,null,null,null,null,null,null,null,null,null,null,null,null,null,null,null,null,null,null,false]
[null,null,null,null,null,null,null,null,null,null,null,null,null,null,null,null,null,null,null,null,null,null,null,null,null,null,null,null,null,null,null,null,null,null,false]
[null,null,null,null,null,null,null,null,null,null,null,null,null,null,null,null,null,null,null,null,null,null,null,null,null,null,null,null,null,null,null,null,null,null,false]
[null,null,null,null,null,null,null,null,null,null,null,null,null,null,null,null,null,null,null,null,null,null,null,null,null,null,null,null,null,null,null,null,null,null,false]
[null,null,null,null,null,null,null,null,null,null,null,null,null,null,null,null,null,null,null,null,null,null,null,null,null,null,null,null,null,null,null,null,null,null,false]
[null,null,null,null,null,null,null,null,null,null,null,null,null,null,null,null,null,null,null,null,null,null,null,null,null,null,null,null,null,null,null,null,null,null,false]
[null,null,null,null,null,null,null,null,null,null,null,null,null,null,null,null,null,null,null,null,null,null,null,null,null,null,null,null,null,null,null,null,null,null,false]
[null,null,null,null,null,null,null,null,null,null,null,null,null,null,null,null,null,null,null,null,null,null,null,null,null,null,null,null,null,null,null,null,null,null,false]
[null,null,null,null,null,null,null,null,null,null,null,null,null,null,null,null,null,null,null,null,null,null,null,null,null,null,null,null,null,null,null,null,null,null,false]
[null,null,null,null,null,null,null,null,null,null,null,null,null,null,null,null,null,null,null,null,null,null,null,null,null,null,null,null,null,null,null,null,null,null,false]
[null,null,null,null,null,null,null,null,null,null,null,null,null,null,null,null,null,null,null,null,null,null,null,null,null,null,null,null,null,null,null,null,null,null,false]
[null,null,null,null,null,null,null,null,null,null,null,null,null,null,null,null,null,null,null,null,null,null,null,null,null,null,null,null,null,null,null,null,null,null,false]
[null,null,null,null,null,null,null,null,null,null,null,null,null,null,null,null,null,null,null,null,null,null,null,null,null,null,null,null,null,null,null,null,null,null,false]
[null,null,null,null,null,null,null,null,null,null,null,null,null,null,null,null,null,null,null,null,null,null,null,null,null,null,null,null,null,null,null,null,null,null,false]
[null,null,null,null,null,null,null,null,null,null,null,null,null,null,null,null,null,null,null,null,null,null,null,null,null,null,null,null,null,null,null,null,null,null,false]
[null,null,null,null,null,null,null,null,null,null,null,null,null,null,null,null,null,null,null,null,null,null,null,null,null,null,null,null,null,null,null,null,null,null,false]
[null,null,null,null,null,null,null,null,null,null,null,null,null,null,null,null,null,null,null,null,null,null,null,null,null,null,null,null,null,null,null,null,null,null,false]
[null,null,null,null,null,null,null,null,null,null,null,null,null,null,null,null,null,null,null,null,null,null,null,null,null,null,null,null,null,null,null,null,null,null,false]
[null,null,null,null,null,null,null,null,null,null,null,null,null,null,null,null,null,null,null,null,null,null,null,null,null,null,null,null,null,null,null,null,null,null,false]
[null,null,null,null,null,null,null,null,null,null,null,null,null,null,null,null,null,null,null,null,null,null,null,null,null,null,null,null,null,null,null,null,null,null,false]
[null,null,null,null,null,null,null,null,null,null,null,null,null,null,null,null,null,null,null,null,null,null,null,null,null,null,null,null,null,null,null,null,null,null,false]
[null,null,null,null,null,null,null,null,null,null,null,null,null,null,null,null,null,null,null,null,null,null,null,null,null,null,null,null,null,null,null,null,null,null,false]
[null,null,null,null,null,null,null,null,null,null,null,null,null,null,null,null,null,null,null,null,null,null,null,null,null,null,null,null,null,null,null,null,null,null,false]
[null,null,null,null,null,null,null,null,null,null,null,null,null,null,null,null,null,null,null,null,null,null,null,null,null,null,null,null,null,null,null,null,null,null,false]
[null,null,null,null,null,null,null,null,null,null,null,null,null,null,null,null,null,null,null,null,null,null,null,null,null,null,null,null,null,null,null,null,null,null,false]
[null,null,null,null,null,null,null,null,null,null,null,null,null,null,null,null,null,null,null,null,null,null,null,null,null,null,null,null,null,null,null,null,null,null,false]

{"sheet":"安全講習会","index":12,"n_rows":23,"n_cols":13,"rows_kept":23,"cut":false,"hidden":false,"merged":[[22,0,31,0],[22,1,31,16],[32,0,32,16],[17,0,21,0],[17,1,17,16],[18,1,18,16],[19,1,19,16],[20,1,20,16],[21,1,21,16],[15,1,15,4],[15,5,15,8],[15,9,15,12],[15,13,15,16],[16,1,16,4],[16,5,16,8],[16,9,16,12],[16,13,16,16],[13,1,13,4],[13,5,13,8],[13,9,13,12],[13,13,13,16],[14,1,14,4],[14,5,14,8],[14,9,14,12],[14,13,14,16],[11,9,11,12],[11,13,11,16],[12,1,12,4],[12,5,12,8],[12,9,12,12],[12,13,12,16],[9,1,9,4],[9,5,9,8],[9,9,9,16],[10,0,16,0],[10,1,10,4],[10,5,10,8],[10,9,10,12],[10,13,10,16],[11,1,11,4],[11,5,11,8],[7,1,7,4],[7,5,7,8],[7,9,7,16],[8,1,8,4],[8,5,8,8],[8,9,8,16],[1,0,1,16],[2,1,2,16],[4,1,4,16],[5,0,9,0],[5,1,5,4],[5,5,5,8],[5,9,5,16],[6,1,6,4],[6,5,6,8],[6,9,6,16]]}
[]
["安全講習会の講習報告書"]
["活動組織名"]
["実施日時","令和",null,"年",null,"月",null,"日",null,"時","～",null,"時"]
["実施場所"]
["講師名　　　　　　　　　　　　（所属や資格等）","講師氏名",null,null,null,"所属",null,null,null,"資格等"]
[]
[]
[]
[]
["参加者名"]
[]
[]
[]
[]
[]
[]
["研修内容"]
[]
[]
[]
[]
["活動風景","安全講習会時写真貼り付け"]

{"sheet":"関係人口名簿","index":13,"n_rows":29,"n_cols":15,"rows_kept":29,"cut":false,"hidden":false,"merged":[[28,0,36,7],[28,8,36,16],[25,2,25,4],[25,5,25,9],[25,10,25,13],[25,14,25,16],[26,2,26,4],[26,5,26,9],[26,10,26,13],[26,14,26,16],[23,2,23,4],[23,5,23,9],[23,10,23,13],[23,14,23,16],[24,2,24,4],[24,5,24,9],[24,10,24,13],[24,14,24,16],[21,2,21,4],[21,5,21,9],[21,10,21,13],[21,14,21,16],[22,2,22,4],[22,5,22,9],[22,10,22,13],[22,14,22,16],[19,2,19,4],[19,5,19,9],[19,10,19,13],[19,14,19,16],[20,2,20,4],[20,5,20,9],[20,10,20,13],[20,14,20,16],[17,2,17,4],[17,5,17,9],[17,10,17,13],[17,14,17,16],[18,2,18,4],[18,5,18,9],[18,10,18,13],[18,14,18,16],[15,2,15,4],[15,5,15,9],[15,10,15,13],[15,14,15,16],[16,2,16,4],[16,5,16,9],[16,10,16,13],[16,14,16,16],[13,2,13,4],[13,5,13,9],[13,10,13,13],[13,14,13,16],[14,2,14,4],[14,5,14,9],[14,10,14,13],[14,14,14,16],[11,2,11,4],[11,5,11,9],[11,10,11,13],[11,14,11,16],[12,2,12,4],[12,5,12,9],[12,10,12,13],[12,14,12,16],[9,2,9,4],[9,5,9,9],[9,10,9,13],[9,14,9,16],[10,2,10,4],[10,5,10,9],[10,10,10,13],[10,14,10,16],[7,5,7,9],[7,10,7,13],[7,14,7,16],[8,2,8,4],[8,5,8,9],[8,10,8,13],[8,14,8,16],[1,0,1,16],[2,1,2,16],[4,1,4,16],[5,1,5,16],[6,0,26,0],[6,2,6,4],[6,5,6,9],[6,10,6,13],[6,14,6,16],[7,2,7,4]]}
[]
["関係人口創出・維持タイプ　活動報告書"]
["活動組織名"]
["活動実施日時","令和",null,"年",null,"月",null,"日",null,"時","～",null,"時"]
["活動場所"]
["活動内容"]
["地域外関係者　参加者名簿","番号","参加者名",null,null,"住所",null,null,null,null,"所属",null,null,null,"備考"]
[null,1]
[null,2]
[null,3]
[null,4]
[null,5]
[null,6]
[null,7]
[null,8]
[null,9]
[null,10]
[null,11]
[null,12]
[]
[]
[]
[]
[]
[]
[]
[]
[null,"集合写真（地域外関係者）",null,null,null,null,null,null,null,null,"活動状況写真"]
["写真添付",null,null,null,null,null,null,null,"写真添付"]

{"sheet":"傷害保険","index":14,"n_rows":11,"n_cols":17,"rows_kept":11,"cut":false,"hidden":false,"merged":[[7,0,7,16],[8,0,8,16],[10,0,19,16],[20,0,20,16],[1,0,1,16],[2,1,2,16],[3,8,3,9],[4,1,4,16],[5,0,5,16],[6,0,6,16]]}
[]
["傷害保険加入証明"]
["活動組織名"]
["活動期間","令和",null,"年",null,"月",null,"日","～",null,"令和",null,"年",null,"月",null,"日"]
["保険会社名"]
["・傷害保険の加入は、森林・山村多面的機能発揮対策交付金を受ける上で必須事項です。"]
["・傷害保険の保険料を、交付金で処理しなかった場合は、加入証明の提出が必要です。"]
["・活動日（日当を計上した日）に活動メンバー全員の加入を証明できる領収証または保険証等のコピーを添付してください。"]
["・傷害保険の加入が証明できない場合は、交付金は交付出来ません。概算払いで受け取り済の交付金は、返還して頂きます。"]
[]
["加入証明書類貼り付け"]